{"text_format":"1","workbook":"xlsx","n_sheets":14,"sheets":["Cover","Info","Results","E01","E02","E03","E04","E05","E06","E07","E08","E09","E10","About"],"not_rendered":{"charts":11,"images":52,"macros":1,"external_links":0,"defined_names":15,"comments":0,"pivot_tables":0},"unopened":[],"bounds":{"document_bytes":16777216,"sheet_cells":100000,"rows_first":2000,"rows_last":500,"rows_between":2000,"halvings":0,"cell_chars":16384,"cell_head_chars":4096},"cells_cut":0,"cells_raw":0,"read":"whole","date_system":"1900"}

{"sheet":"Cover","index":0,"n_rows":0,"n_cols":0,"rows_kept":0,"cut":false,"hidden":false,"merged":[]}

{"sheet":"Info","index":1,"n_rows":39,"n_cols":4,"rows_kept":39,"cut":false,"hidden":false,"merged":[[38,1,38,3],[39,1,39,3],[2,1,2,2],[3,1,3,2],[4,1,4,2],[5,1,5,2],[6,1,6,2],[37,1,37,3],[31,1,31,2],[32,1,32,2],[33,1,33,2],[34,1,34,2],[35,1,35,2]]}
[]
[]
[null,"Cette évaluation",null,"Réponse"]
[null,"Nom de ville"]
[null,"Type de ville (municipalité, zones métropolitaines, etc)"]
[null,"Pays"]
[null,"Date d'évaluation"]
[]
[null,"Profil de la ville (Obligatoire)","Réponse","Date"]
[null,"Titre du plus haut niveau d'autorité (par exemple, maire, etc.)"]
[null,"Population totale de la ville:"]
[null,"Ville kilomètres carrés:"]
[null,"Densité de la population (par kilomètre carré):"]
[null,"Population qui est jeune (15-24 ans) (%):"]
[null,"Population majoritaire (65+) (%):"]
[null,"Genre (ménages dirigés par des femmes):"]
[null,"Taux d'alphabétisation (% de la population alphabétisée):"]
[null,"Taux de pauvreté (% de population non pauvre):"]
[null,"Revenu moyen du ménage (USD):"]
[null,"Résidents qui ne sont pas citoyens (%):"]
[null,"Risque probable de catastrophe probable:"]
[null,"La catastrophe la plus grave (connue):"]
[]
[null,"Profil de la ville (facultatif)","Réponse","Date"]
[null,"Nombre total de ménages:"]
[null,"Personnes par unité:"]
[null,"Coût de la vie (USD):"]
[null,"PIB du pays par habitant (USD)"]
[null,"Coefficient de Gini:"]
[null,"Produit de la ville par habitant (USD):"]
[]
[null,"Réponse de l'équipe de réduction et de résilience des catastrophes du gouvernement local",null,"Réponse"]
[null,"Nom de la personne qui mène / coordonne l'achèvement de l'évaluation du tableau de bord:"]
[null,"Organisation: "]
[null,"Détails du contact:"]
[null,"Volonté de partager les résultats ou être utilisé comme exemple / étude de cas par l'UNDRR et ses partenaires:"]
[]
[null,"Informations sur les parties prenantes"]
[null,"Veuillez indiquer toutes les parties prenantes qui ont soutenu cette évaluation ci-dessous."]

{"sheet":"Results","index":2,"n_rows":221,"n_cols":13,"rows_kept":221,"cut":false,"hidden":false,"merged":[[131,2,131,5],[35,2,35,5],[36,2,36,5],[37,2,37,5],[123,2,123,5],[124,2,124,5],[125,2,125,5],[47,2,47,5],[48,2,48,5],[49,2,49,5],[50,2,50,5],[126,2,126,5],[127,2,127,5],[128,2,128,5],[129,2,129,5],[130,2,130,5],[51,2,51,5],[61,2,61,5],[62,2,62,5],[63,2,63,5],[64,2,64,5],[89,2,89,5],[85,1,85,6],[74,2,74,5],[75,2,75,5],[76,2,76,5],[77,2,77,5],[87,2,87,5],[88,2,88,5],[111,2,111,5],[98,2,98,5],[94,1,94,6],[96,2,96,5],[97,2,97,5],[106,1,106,6],[108,2,108,5],[109,2,109,5],[110,2,110,5],[99,2,99,5],[100,2,100,5],[101,2,101,5],[158,1,158,3],[134,1,134,6],[136,2,136,5],[137,2,137,5],[138,2,138,5],[139,2,139,5],[140,2,140,5],[141,2,141,5],[142,2,142,5],[146,1,146,6],[148,2,148,5],[149,2,149,5]]}
[]
[]
[]
[]
[]
[]
[]
[]
[]
[]
[]
[]
[]
[]
[]
[]
[]
[]
[]
[]
[]
[]
[]
[]
[]
[]
[]
[]
[]
[]
[]
[]
[]
[null,"Point Essentiel 01: S’Organiser pour la Résilience"]
[]
[null,{"$f":"C175","v":"P1.1"},{"$f":"E175","v":"Le plan directeur de la ville (ou le plan/stratégie approprié) comprend-t-il et met en œuvre des approches pour la réduction des risques de catastrophe en conformité avec le Cadre de Sendai ?"},null,null,null,{"$f":"F175","v":0}]
[null,{"$f":"C176","v":"P1.2"},{"$f":"E176","v":"Existe- t-il un mécanisme pluri-organisations/secteurs ayant l’autorité et les ressources appropriées pour traiter la réduction des risques de catastrophe ?"},null,null,null,{"$f":"F176","v":0}]
[null,"P1.3","La résilience est-elle convenablement intégrée avec les autres fonctions/portefeuilles ? (e.g. planification, durabilité, approbation du dossier d’investissement, financement et compatibilité, engagement communautaire, gestion d’urgence, respect du code, gestion d’infrastructure, communications, etc.)",null,null,null,0]
[]
[]
[]
[]
[]
[]
[]
[null,"Point Essentiel 02 : Identifier, Comprendre et Utiliser Des Scénarios de Risques Présents et Futurs"]
[]
[null,{"$f":"C178","v":"P2.1"},{"$f":"E178","v":"La Ville connaît-elle les aléas majeurs qui la guettent, leur probabilité d'occurrence?"},null,null,null,{"$f":"F178","v":0}]
[null,{"$f":"C179","v":"P2.2"},{"$f":"E179","v":"Existe-t-il une compréhension commune des risques entre la ville, les différents fournisseurs des services et les autres agences nationales et régionales ayant un rôle dans l’administration de l’infrastructure, comme l’électricité, l’eau, les routes, les voies ferrées,  en matière des points de tension exercée sur le système et les risques à l’échelle de la ville ?"},null,null,null,{"$f":"F179","v":0}]
[null,"P2.3","Existe-t-il des scénarios convenus décrivant, pour chaque aléa ou groupes d’aléas, l’exposition et la vulnérabilité au niveau de la ville ? (voir en haut)",null,null,null,0]
[null,"P2.4",{"$f":"E181","v":"Existe-t-il entre les villes et les systèmes d’infrastructure une appréhension commune des effets potentiels en cascade, selon différents scénarios ?"},null,null,null,0]
[null,"P2.5",{"$f":"E182","v":"Existe-t-il des cartes et des données concernant les aléas clairs ? Sont-elles régulièrement actualisées ?"},null,null,null,0]
[]
[]
[]
[]
[]
[]
[]
[null,"Point Essentiel 03 : Renforcer la Capacité Financière en matière de Résilience"]
[]
[null,{"$f":"C183","v":"P3.1"},{"$f":"E183","v":"La ville/les organismes responsables comprennent toutes les sources de financement, et « les dividendes résilience », ils sont bien connectés, comprennent tous les chemins possibles pour encourager le financement extérieur, et sont activement à la recherche des fonds en vue d’investissements majeurs en matière de résilience."},null,null,null,{"$f":"F183","v":0}]
[null,{"$f":"C184","v":"P3.2"},{"$f":"E184","v":"La ville est-elle dotée de budget spécifique cantonné (protégé), des ressources nécessaires et de fond de réserve pour la RRC locale (l’atténuation, la prévention, la réaction, et le redressement) ?"},null,null,null,{"$f":"F184","v":0}]
[null,"P3.3","Quel  niveau de couverture assurance existe en ville, à travers tous les secteurs- entreprises et communauté ?",null,null,null,0]
[null,"P3.4","Quelles sont les incitations qui existent dans les divers secteurs et segments de la société et des entreprises en vue de soutenir le renforcement de la résilience ?",null,null,null,0]
[]
[]
[]
[]
[]
[]
[]
[null,"Point Essentiel 04 : Poursuivre le Développement Urbain Résilient"]
[]
[null,{"$f":"C187","v":"P4.1"},{"$f":"E187","v":"La ville est-elle zonée de manière appropriée en prenant en considération, par exemple, selon des scénarios de risque clés, l’impact sur l’activité économique, la production agricole, et les centres de population ?"},null,null,null,{"$f":"F187","v":0}]
[null,{"$f":"C188","v":"P4.2"},{"$f":"E188","v":"Existe-t-il, à travers le design et le  nouvel aménagement urbain, des approches en faveur de la promotion de la résilience ?"},null,null,null,{"$f":"F188","v":0}]
[null,"P4.3","Existe-t-il des codes ou des standards de construction, et abordent-ils des aléas et des risques connus spécifiques pour la ville ? Sont-ils régulièrement mis à jour?",null,null,null,0]
[null,"P4.4","Les règles du zonage, les codes et standards de bâtiment sont-ils largement appliqués, correctement respectés et vérifiés ?",null,null,null,0]
[]
[]
[]
[]
[]
[]
[]
[null,"Point Essentiel  05: Sauvegarder des Zones Tampons Naturelles en Vue de Renforcer les Fonctions Protectives Prodiguées par les Ecosystèmes Naturels"]
[]
[null,{"$f":"C191","v":"P5.1"},{"$f":"E191","v":"Au-delà d’être conscient des actifs naturels, la ville comprend-t-elle les fonctions/services que ce capital naturel fournit à la ville ?"},null,null,null,{"$f":"F191","v":0}]
[null,{"$f":"C192","v":"P5.2"},{"$f":"E192","v":"Est-ce-que l’infrastructure verte et bleue est  promue à travers les politiques dans les projets majeurs de développement urbain et d’infrastructure ?"},null,null,null,{"$f":"F192","v":0}]
[null,{"$f":"C193","v":"P5.3"},"La ville est-elle consciente des services écosystèmes fournis par le capital naturel existant au-delà de ses limites administratifs? Existe-t-il des accords avec les divisions administratives voisines pour protéger et gérer ces actifs naturels.",null,null,null,{"$f":"F193","v":0}]
[]
[]
[]
[]
[null,"Point Essentiel 06 : Renforcer la capacité Institutionnelle Pour la Résilience"]
[]
[null,{"$f":"C194","v":"P6.1"},{"$f":"E194","v":"Est-ce-que la ville a accès clair à toutes les compétences et expériences dont elle pense avoir besoin pour répondre à réduire le risque, et répondre aux scénarios de catastrophes identifiées ?"},null,null,null,{"$f":"F194","v":0}]
[null,{"$f":"C195","v":"P6.2"},{"$f":"E195","v":"Existe-t-il des campagnes de relation publique et d’éducation coordonnées, avec une messagerie et des chaînes structurées pour assurer l’information sur les aléas, les risques et les catastrophes (compréhensibles et utilisables) diffusés au public de manière appropriée ? "},null,null,null,{"$f":"F195","v":0}]
[null,"P6.3","A quel degré les données concernant la résilience de la ville sont partagées avec d’autres organisations engagées dans la résilience de la ville.",null,null,null,0]
[null,"P6.4",{"$f":"E197","v":"Existe-t-il des cours sur la résilience et le risque,  dispensés à tous les secteurs de la ville comprenant le gouvernement, les entreprises, les ONGs et les communautés ?"},null,null,null,0]
[null,"P6.5",{"$f":"E198","v":"Les matériaux de formation sont-ils disponibles dans la majorité des langues parlées dans la ville ?"},null,null,null,0]
[null,"P6.6","La ville cherche-t-elle pro-activement à échanger le savoir et apprendre auprès des autres villes faisant face à des défis similaires ?",null,null,null,0]
[]
[]
[]
[]
[null,"Point Essentiel 07: Comprendre et Renforcer la Capacité Sociétale pour la Résilience"]
[]
[null,{"$f":"C200","v":"P7.1"},{"$f":"E200","v":"Les Organisations communautaires de chaque quartier de la ville, participent-ils dans la planification pré-évènement et dans la réaction post-évènement ?"},null,null,null,{"$f":"F200","v":0}]
[null,{"$f":"C201","v":"P7.2"},{"$f":"E201","v":"Offre-t-on aux plus vulnérables et nécessiteux de la ville des programmes de formation réguliers ? "},null,null,null,{"$f":"F201","v":0}]
[null,"P7.3","Quelle proportion des entreprises ont un plan de poursuite d’activité qui ait été révisé durant les 18 derniers mois ?",null,null,null,0]
[null,"P7.4",{"$f":"E203","v":"A quel degré la ville est-elle performante en matière de communication et d’engagement de citoyens  sur le plan de la RRC ?"},null,null,null,0]
[]
[]
[]
[]
[]
[]
[]
[]
[]
[null,"Point Essentiel 08: Accroître la résilience d'infrastructure"]
[]
[null,{"$f":"C204","v":"P8.1"},{"$f":"E204","v":"La résilience de l’infrastructure critique est-elle une priorité de la ville, et celle-ci possède-t-elle un plan ou une stratégie d’infrastructure critique, met-elle en œuvre ce plan ou stratégie ?"},null,null,null,{"$f":"F204","v":0}]
[null,{"$f":"C205","v":"P8.2"},{"$f":"E205","v":"L’Infrastructure protective existante est-elle bien conçue et bien construite d’après l’information en matière du risque."},null,null,null,{"$f":"F205","v":0}]
[null,"P8.3","Une défaillance grave de service serait-elle prévue pour ces deux services essentiels, pour une grande partie de la ville au titre des scénarios de catastrophes convenus ?",null,null,null,0]
[null,"P8.4",{"$f":"E207","v":"Une défaillance grave du service serait-elle prévue pour une grande proportion de la ville « au pire » scénario ? En cas de défaillance, les couloirs de l’infrastructure d’énergie resteraient-ils fiables (i.e à l’abri de risque de fuite, d’aléas d’électrocution, etc) ?"},null,null,null,0]
[null,"P8.5","Une défaillance grave du service serait-elle prévue pour une grande proportion de la ville « au pire » scénario ? En cas de défaillance, les couloirs de l’infrastructure  de transport resteraient-ils fiables (i.e à l’abri de risque d’inondations, de chocs, etc) et  praticables ?",null,null,null,0]
[null,"P8.6","Une défaillance grave du service serait-elle prévue pour une grande proportion de la ville « au pire » scénario ? ",null,null,null,0]
[null,"P8.7","Le service de santé  aura-t-il les moyens suffisants pour traiter les cas de graves blessures sous le « pire » scénario ?",null,null,null,0]
[null,"P8.8","% des structures d’éducation sous le risque de dégâts sous le scénario « le plus probable » et « le plus sévère »",null,null,null,0]
[null,{"$f":"C212","v":"P8.9"},"Les équipements des premiers intervenants seront-ils suffisants avec, au besoin, une assistance militaire ou civile ?",null,null,null,0]
[]
[]
[null,"Point Essentiel 09 : Assurer l’efficacité de réaction en cas de catastrophe"]
[]
[null,{"$f":"C213","v":"P9.1"},{"$f":"E213","v":"Est-ce que la ville possède un plan ou une procédure opératoire standard, pour agir en cas d’alerte précoce ou de prévisions météo ? Quelle est la proportion de population  qu’on peut joindre avec le système d’alerte précoce?"},null,null,null,{"$f":"F213","v":0}]
[null,{"$f":"C214","v":"P9.2"},{"$f":"E214","v":"Existe-t-il un plan de gestion/préparation/de réaction d’urgence en matière de catastrophe,  traçant l’atténuation, la préparation et la réaction de la ville en cas d’urgence locale?"},null,null,null,{"$f":"F214","v":0}]
[null,"P9.3","Est-ce que l’autorité responsable de gérer la catastrophe est dotée d’une capacité adéquate en matière de personnel, pour assumer les tâches de premier intervenant dans le scénario d’émergence de crise ?",null,null,null,0]
[null,"P9.4","Les besoins en matière d’équipements et d’approvisionnement, ainsi que la disponibilité des équipements sont-ils clairement définis ?",null,null,null,0]
[null,"P9.5","La ville sera-t-elle capable à maintenir l’alimentation et le refuge de la population dans les séquelles de l’évènement ?",null,null,null,0]
[null,"P9.6","Existe-t-il un centre d’opérations d’urgence, où participent toutes les agences, automatisant des procédures de fonctionnement standards, conçues spécifiquement pour traiter les scénarios « les plus probables » et les « plus sévères » ?",null,null,null,0]
[null,"P9.7",{"$f":"E219","v":"Les exercices pratiques et les manœuvres engagent-ils le public et les professionnels ?"},null,null,null,{"$f":"F219","v":0}]
[]
[]
[]
[null,"Point Essentiel 10: Diligenter le redressement et reconstruire en mieux"]
[]
[null,{"$f":"C220","v":"P10.1"},{"$f":"E220","v":"Existe-t-il une stratégie ou un processus en place pour le redressement post-évènement et la reconstruction, dont le redémarrage économique, les aspects sociétaux, etc ?"},null,null,null,{"$f":"F220","v":0}]
[null,{"$f":"C221","v":"P10.2"},{"$f":"E221","v":"Les processus d’évaluation post-évènement intègrent-ils des analyses d’échecs et l’aptitude de tirer des enseignements qui constituent un apport au design et aux projets de reconstruction ?"},null,null,null,{"$f":"F221","v":0}]
[]
[]
[]
[]
[]
[]
[]
[]
[null,{"$f":"TODAY()","v":"2019-05-31"}]
[]
[]
[null,null,"Label","Name",null,"Essential","TotalScore","MaxScore","Label"]
[null,null,"S1","1.   Organise for Disaster Resilience",null,"E1",{"$f":"SUMIFS($F$175:$F$1154,$B$175:$B$1154,F163)","v":0},{"$f":"COUNTIFS($B$175:$B$221,F163)*3","v":9},"01",null,{"$f":"SUM(G163:G172)","v":0},{"$f":"K163/K164","v":0},{"$f":"CONCATENATE(\"Le résultat total pour cette évaluation est: \",SUM(G163:G172),\" / \",SUM(H163:H172))","v":"Le résultat total pour cette évaluation est: 0 / 141"}]
[null,null,"S2","2.   Identify, Understand and Use Current and Future Risk Scenarios",null,"E2",0,15,"02",null,{"$f":"SUM(H163:H172)","v":141},{"$f":"1-L163","v":1}]
[null,null,"S3","3.   Strengthen Financial Capacity for Resilience",null,"E3",0,12,"03"]
[null,null,"S4","4.   Pursue Resilient Urban Development and Design",null,"E4",0,12,"04"]
[null,null,"S5","5.   Safeguard Natural Buffers to Enhance Ecosystems’ Protective Functions",null,"E5",0,9,"05"]
[null,null,"S6","6.   Strengthen Institutional Capacity for Resilience",null,"E6",0,18,"06"]
[null,null,"S7","7.   Understand and Strengthen Societal Capacity for Resilience",null,"E7",0,12,"07"]
[null,null,"S8","8.   Increase Infrastructure Resilience",null,"E8",0,27,"08"]
[null,null,"S9","9.   Ensure Effective Disaster Response",null,"E9",0,21,"09"]
[null,null,"S10","10. Expedite Recovery and Build Back Better",null,"E10",0,6,"10"]
[]
[null,"Section","Ref",null,"Question","SelectedScore","ThisScore"]
[null,"E1","P1.1",null,"Le plan directeur de la ville (ou le plan/stratégie approprié) comprend-t-il et met en œuvre des approches pour la réduction des risques de catastrophe en conformité avec le Cadre de Sendai ?",{"$f":"IF(G175=\"\",0,IF(G175=0,0,4-G175))","v":0},{"$f":"'E01'!$E$7","v":0}]
[null,"E1","P1.2",null,"Existe- t-il un mécanisme pluri-organisations/secteurs ayant l’autorité et les ressources appropriées pour traiter la réduction des risques de catastrophe ?",{"$f":"IF(G176=\"\",0,IF(G176=0,0,4-G176))","v":0},{"$f":"'E01'!$E$18","v":0}]
[null,"E1","P1.3",null,"La résilience est-elle convenablement intégrée avec les autres fonctions/portefeuilles ? (e.g. planification, durabilité, approbation du dossier d’investissement, financement et compatibilité, engagement communautaire, gestion d’urgence, respect du code, gestion d’infrastructure, communications, etc.)",0,{"$f":"'E01'!$E$29","v":0}]
[null,"E2","P2.1",null,"La Ville connaît-elle les aléas majeurs qui la guettent, leur probabilité d'occurrence?",0,{"$f":"'E02'!$E$7","v":0}]
[null,"E2","P2.2",null,"Existe-t-il une compréhension commune des risques entre la ville, les différents fournisseurs des services et les autres agences nationales et régionales ayant un rôle dans l’administration de l’infrastructure, comme l’électricité, l’eau, les routes, les voies ferrées,  en matière des points de tension exercée sur le système et les risques à l’échelle de la ville ?",0,{"$f":"'E02'!$E$18","v":0}]
[null,"E2","P2.3",null,"Existe-t-il des scénarios convenus décrivant, pour chaque aléa ou groupes d’aléas, l’exposition et la vulnérabilité au niveau de la ville ? (voir en haut)",0,{"$f":"'E02'!$E$29","v":0}]
[null,"E2","P2.4",null,"Existe-t-il entre les villes et les systèmes d’infrastructure une appréhension commune des effets potentiels en cascade, selon différents scénarios ?",0,{"$f":"'E02'!$E$40","v":0}]
[null,"E2","P2.5",null,"Existe-t-il des cartes et des données concernant les aléas clairs ? Sont-elles régulièrement actualisées ?",0,{"$f":"'E02'!$E$51","v":0}]
[null,"E3","P3.1",null,"La ville/les organismes responsables comprennent toutes les sources de financement, et « les dividendes résilience », ils sont bien connectés, comprennent tous les chemins possibles pour encourager le financement extérieur, et sont activement à la recherche des fonds en vue d’investissements majeurs en matière de résilience.",0,{"$f":"'E03'!$E$7","v":0}]
[null,"E3","P3.2",null,"La ville est-elle dotée de budget spécifique cantonné (protégé), des ressources nécessaires et de fond de réserve pour la RRC locale (l’atténuation, la prévention, la réaction, et le redressement) ?",0,{"$f":"'E03'!$E$18","v":0}]
[null,"E3","P3.3",null,"Quel  niveau de couverture assurance existe en ville, à travers tous les secteurs- entreprises et communauté ?",0,{"$f":"'E03'!$E$29","v":0}]
[null,"E3","P3.4",null,"Quelles sont les incitations qui existent dans les divers secteurs et segments de la société et des entreprises en vue de soutenir le renforcement de la résilience ?",0,{"$f":"'E03'!$E$40","v":0}]
[null,"E4","P4.1",null,"La ville est-elle zonée de manière appropriée en prenant en considération, par exemple, selon des scénarios de risque clés, l’impact sur l’activité économique, la production agricole, et les centres de population ?",0,{"$f":"'E04'!$E$7","v":0}]
[null,"E4","P4.2",null,"Existe-t-il, à travers le design et le  nouvel aménagement urbain, des approches en faveur de la promotion de la résilience ?",0,{"$f":"'E04'!$E$18","v":0}]
[null,"E4","P4.3",null,"Existe-t-il des codes ou des standards de construction, et abordent-ils des aléas et des risques connus spécifiques pour la ville ? Sont-ils régulièrement mis à jour?",0,{"$f":"'E04'!$E$18","v":0}]
[null,"E4","P4.4",null,"Les règles du zonage, les codes et standards de bâtiment sont-ils largement appliqués, correctement respectés et vérifiés ?",0,{"$f":"'E04'!$E$40","v":0}]
[null,"E5","P5.1",null,"Au-delà d’être conscient des actifs naturels, la ville comprend-t-elle les fonctions/services que ce capital naturel fournit à la ville ?",0,{"$f":"'E05'!$E$7","v":0}]
[null,"E5","P5.2",null,"Est-ce-que l’infrastructure verte et bleue est  promue à travers les politiques dans les projets majeurs de développement urbain et d’infrastructure ?",0,{"$f":"'E05'!$E$18","v":0}]
[null,"E5","P5.3",null,"La ville est-elle consciente des services écosystèmes fournis par le capital naturel existant au-delà de ses limites administratifs? Existe-t-il des accords avec les divisions administratives voisines pour protéger et gérer ces actifs naturels.",0,{"$f":"'E05'!$E$29","v":0}]
[null,"E6","P6.1",null,"Est-ce-que la ville a accès clair à toutes les compétences et expériences dont elle pense avoir besoin pour répondre à réduire le risque, et répondre aux scénarios de catastrophes identifiées ?",0,{"$f":"'E06'!$E$7","v":0}]
[null,"E6","P6.2",null,"Existe-t-il des campagnes de relation publique et d’éducation coordonnées, avec une messagerie et des chaînes structurées pour assurer l’information sur les aléas, les risques et les catastrophes (compréhensibles et utilisables) diffusés au public de manière appropriée ? ",0,{"$f":"'E06'!$E$18","v":0}]
[null,"E6","P6.3",null,"A quel degré les données concernant la résilience de la ville sont partagées avec d’autres organisations engagées dans la résilience de la ville.",0,{"$f":"'E06'!$E$29","v":0}]
[null,"E6","P6.4",null,"Existe-t-il des cours sur la résilience et le risque,  dispensés à tous les secteurs de la ville comprenant le gouvernement, les entreprises, les ONGs et les communautés ?",0,{"$f":"'E06'!$E$40","v":0}]
[null,"E6","P6.5",null,"Les matériaux de formation sont-ils disponibles dans la majorité des langues parlées dans la ville ?",0,{"$f":"'E06'!$E$51","v":0}]
[null,"E6","P6.6",null,"La ville cherche-t-elle pro-activement à échanger le savoir et apprendre auprès des autres villes faisant face à des défis similaires ?",0,{"$f":"'E06'!$E$62","v":0}]
[null,"E7","P7.1",null,"Les Organisations communautaires de chaque quartier de la ville, participent-ils dans la planification pré-évènement et dans la réaction post-évènement ?",0,{"$f":"'E07'!$E$7","v":0}]
[null,"E7","P7.2",null,"Offre-t-on aux plus vulnérables et nécessiteux de la ville des programmes de formation réguliers ? ",0,{"$f":"'E07'!$E$18","v":0}]
[null,"E7","P7.3",null,"Quelle proportion des entreprises ont un plan de poursuite d’activité qui ait été révisé durant les 18 derniers mois ?",0,{"$f":"'E07'!$E$29","v":0}]
[null,"E7","P7.4",null,"A quel degré la ville est-elle performante en matière de communication et d’engagement de citoyens  sur le plan de la RRC ?",0,{"$f":"'E07'!$E$40","v":0}]
[null,"E8","P8.1",null,"La résilience de l’infrastructure critique est-elle une priorité de la ville, et celle-ci possède-t-elle un plan ou une stratégie d’infrastructure critique, met-elle en œuvre ce plan ou stratégie ?",0,{"$f":"'E08'!E7","v":0}]
[null,"E8","P8.2",null,"L’Infrastructure protective existante est-elle bien conçue et bien construite d’après l’information en matière du risque.",0,{"$f":"'E08'!E18","v":0}]
[null,"E8","P8.3",null,"Une défaillance grave de service serait-elle prévue pour ces deux services essentiels, pour une grande partie de la ville au titre des scénarios de catastrophes convenus ?",0,{"$f":"'E08'!E29","v":0}]
[null,"E8","P8.4",null,"Une défaillance grave du service serait-elle prévue pour une grande proportion de la ville « au pire » scénario ? En cas de défaillance, les couloirs de l’infrastructure d’énergie resteraient-ils fiables (i.e à l’abri de risque de fuite, d’aléas d’électrocution, etc) ?",0,{"$f":"'E08'!E40","v":0}]
[null,"E8","P8.5",null,"Une défaillance grave du service serait-elle prévue pour une grande proportion de la ville « au pire » scénario ? En cas de défaillance, les couloirs de l’infrastructure  de transport resteraient-ils fiables (i.e à l’abri de risque d’inondations, de chocs, etc) et  praticables ?",0,{"$f":"'E08'!E51","v":0}]
[null,"E8","P8.6",null,"Une défaillance grave du service serait-elle prévue pour une grande proportion de la ville « au pire » scénario ? ",0,{"$f":"'E08'!E62","v":0}]
[null,"E8","P8.7",null,"Le service de santé  aura-t-il les moyens suffisants pour traiter les cas de graves blessures sous le « pire » scénario ?",0,{"$f":"'E08'!E73","v":0}]
[null,"E8","P8.8",null,"% des structures d’éducation sous le risque de dégâts sous le scénario « le plus probable » et « le plus sévère »",0,{"$f":"'E08'!E84","v":0}]
[null,"E8","P8.9",null,"Les équipements des premiers intervenants seront-ils suffisants avec, au besoin, une assistance militaire ou civile ?",0,{"$f":"'E08'!E95","v":0}]
[null,"E9","P9.1",null,"Est-ce que la ville possède un plan ou une procédure opératoire standard, pour agir en cas d’alerte précoce ou de prévisions météo ? Quelle est la proportion de population  qu’on peut joindre avec le système d’alerte précoce?",0,{"$f":"'E09'!$E$7","v":0}]
[null,"E9","P9.2",null,"Existe-t-il un plan de gestion/préparation/de réaction d’urgence en matière de catastrophe,  traçant l’atténuation, la préparation et la réaction de la ville en cas d’urgence locale?",0,{"$f":"'E09'!$E$18","v":0}]
[null,"E9","P9.3",null,"Est-ce que l’autorité responsable de gérer la catastrophe est dotée d’une capacité adéquate en matière de personnel, pour assumer les tâches de premier intervenant dans le scénario d’émergence de crise ?",0,{"$f":"'E09'!$E$29","v":0}]
[null,"E9","P9.4",null,"Les besoins en matière d’équipements et d’approvisionnement, ainsi que la disponibilité des équipements sont-ils clairement définis ?",0,{"$f":"'E09'!$E$40","v":0}]
[null,"E9","P9.5",null,"La ville sera-t-elle capable à maintenir l’alimentation et le refuge de la population dans les séquelles de l’évènement ?",0,{"$f":"'E09'!$E$51","v":0}]
[null,"E9","P9.6",null,"Existe-t-il un centre d’opérations d’urgence, où participent toutes les agences, automatisant des procédures de fonctionnement standards, conçues spécifiquement pour traiter les scénarios « les plus probables » et les « plus sévères » ?",0,{"$f":"'E09'!$E$62","v":0}]
[null,"E9","P9.7",null,"Les exercices pratiques et les manœuvres engagent-ils le public et les professionnels ?",0,{"$f":"'E09'!$E$73","v":0}]
[null,"E10","P10.1",null,"Existe-t-il une stratégie ou un processus en place pour le redressement post-évènement et la reconstruction, dont le redémarrage économique, les aspects sociétaux, etc ?",0,{"$f":"'E10'!$E$7","v":0}]
[null,"E10","P10.2",null,"Les processus d’évaluation post-évènement intègrent-ils des analyses d’échecs et l’aptitude de tirer des enseignements qui constituent un apport au design et aux projets de reconstruction ?",0,{"$f":"'E10'!$E$18","v":0}]

{"sheet":"E01","index":3,"n_rows":33,"n_cols":6,"rows_kept":33,"cut":false,"hidden":false,"merged":[[16,2,16,3],[4,2,4,3],[3,2,3,3],[5,2,5,3],[6,2,9,3],[14,2,14,3],[15,2,15,3],[17,2,20,3],[25,2,25,3],[26,2,26,3],[27,2,27,3],[28,2,31,3]]}
["1AECOMIBM1"]
[]
[null,"P1.1 - Elaboration du Plan"]
[null,"Question/Zone d’évaluation","Observations"]
[]
[null,"Echelle de Mesure Indicative","Moyens de vérification (explications et preuves)"]
[null,null,null,null,null,{"$f":"IF(E7=1,TRUE,FALSE)","v":false}]
[null,null,null,null,null,{"$f":"IF(E7=2,TRUE,FALSE)","v":false}]
[null,null,null,null,null,{"$f":"IF(E7=3,TRUE,FALSE)","v":false}]
[null,null,null,null,null,{"$f":"IF(E7=4,TRUE,FALSE)","v":false}]
[null,"Actions pour obtenir une résilience maximale","Institution responsable","Calendrier"]
[]
[]
[null,"P1.2 - L’organisation, la coordination et la participation"]
[null,"Question/Zone d’évaluation","Observations"]
[]
[null,"Echelle de Mesure Indicative","Moyens de vérification (explications et preuves)"]
[null,null,null,null,null,{"$f":"IF(E18=1,TRUE,FALSE)","v":false}]
[null,null,null,null,null,{"$f":"IF(E18=2,TRUE,FALSE)","v":false}]
[null,null,null,null,null,{"$f":"IF(E18=3,TRUE,FALSE)","v":false}]
[null,null,null,null,null,{"$f":"IF(E18=4,TRUE,FALSE)","v":false}]
[null,"Actions pour obtenir une résilience maximale","Institution responsable","Calendrier"]
[]
[]
[null,"P1.3 - L’intégration"]
[null,"Question/Zone d’évaluation","Observations"]
[]
[null,"Echelle de Mesure Indicative","Moyens de vérification (explications et preuves)"]
[null,null,null,null,null,{"$f":"IF(E29=1,TRUE,FALSE)","v":false}]
[null,null,null,null,null,{"$f":"IF(E29=2,TRUE,FALSE)","v":false}]
[null,null,null,null,null,{"$f":"IF(E29=3,TRUE,FALSE)","v":false}]
[null,null,null,null,null,{"$f":"IF(E29=4,TRUE,FALSE)","v":false}]
[null,"Actions pour obtenir une résilience maximale","Institution responsable","Calendrier"]

{"sheet":"E02","index":4,"n_rows":55,"n_cols":6,"rows_kept":55,"cut":false,"hidden":false,"merged":[[48,2,48,3],[49,2,49,3],[50,2,53,3],[14,2,14,3],[15,2,15,3],[36,2,36,3],[37,2,37,3],[38,2,38,3],[39,2,42,3],[16,2,16,3],[17,2,20,3],[25,2,25,3],[26,2,26,3],[27,2,27,3],[28,2,31,3],[3,2,3,3],[4,2,4,3],[5,2,5,3],[6,2,9,3],[47,2,47,3]]}
[]
[]
[null,"P2.1 - Evaluation des aléas"]
[null,"Question/Domaine d’Evaluation","Observations"]
[]
[null,"Echelle de Mesure Indicative","Moyens de vérification (explications et preuves)"]
[null,null,null,null,null,{"$f":"IF(E7=1,TRUE,FALSE)","v":false}]
[null,null,null,null,null,{"$f":"IF(E7=2,TRUE,FALSE)","v":false}]
[null,null,null,null,null,{"$f":"IF(E7=3,TRUE,FALSE)","v":false}]
[null,null,null,null,null,{"$f":"IF(E7=4,TRUE,FALSE)","v":false}]
["1-Des données sont disponibles sur la majorité des principaux aléas.","Actions pour obtenir une résilience maximale","Institution responsable","Calendrier"]
[]
[]
[null,"P2.2 - Compréhension commune du risque d’infrastructure"]
[null,"Question/Domaine d’Evaluation","Observations"]
[]
[null,"Echelle de Mesure Indicative","Moyens de vérification (explications et preuves)"]
[null,null,null,null,null,{"$f":"IF(E18=1,TRUE,FALSE)","v":false}]
[null,null,null,null,null,{"$f":"IF(E18=2,TRUE,FALSE)","v":false}]
[null,null,null,null,null,{"$f":"IF(E18=3,TRUE,FALSE)","v":false}]
[null,null,null,null,null,{"$f":"IF(E18=4,TRUE,FALSE)","v":false}]
[null,"Actions pour obtenir une résilience maximale","Responsible institution","Calendrier"]
[]
[]
[null,"P2.3 - L’information sur l’exposition au danger et la vulnérabilité"]
[null,"Question/Domaine d’Evaluation","Observations"]
[]
[null,"Echelle de Mesure Indicative","Moyens de vérification (explications et preuves)"]
[null,null,null,null,null,{"$f":"IF(E29=1,TRUE,FALSE)","v":false}]
[null,null,null,null,null,{"$f":"IF(E29=2,TRUE,FALSE)","v":false}]
[null,null,null,null,null,{"$f":"IF(E29=3,TRUE,FALSE)","v":false}]
[null,null,null,null,null,{"$f":"IF(E29=4,TRUE,FALSE)","v":false}]
[null,"Actions pour obtenir une résilience maximale","Institution responsable","Calendrier"]
[]
[]
[null,"P2.4 - Les impacts en cascade"]
[null,"Question/Domaine d’Evaluation","Observations"]
[]
[null,"Echelle de Mesure Indicative","Moyens de vérification (explications et preuves)"]
[null,null,null,null,null,{"$f":"IF(E40=1,TRUE,FALSE)","v":false}]
[null,null,null,null,null,{"$f":"IF(E40=2,TRUE,FALSE)","v":false}]
[null,null,null,null,null,{"$f":"IF(E40=3,TRUE,FALSE)","v":false}]
[null,null,null,null,null,{"$f":"IF(E40=4,TRUE,FALSE)","v":false}]
[null,"Actions pour obtenir une résilience maximale","Institution responsable","Calendrier"]
[]
[]
[null,"P2.5 - Présentation et processus de mise au jour de l’information relative au risque"]
[null,"Question/Domaine d’Evaluation","Observations"]
[]
[null,"Echelle de Mesure Indicative","Moyens de vérification (explications et preuves)"]
[null,null,null,null,null,{"$f":"IF(E51=1,TRUE,FALSE)","v":false}]
[null,null,null,null,null,{"$f":"IF(E51=2,TRUE,FALSE)","v":false}]
[null,null,null,null,null,{"$f":"IF(E51=3,TRUE,FALSE)","v":false}]
[null,null,null,null,null,{"$f":"IF(E51=4,TRUE,FALSE)","v":false}]
[null,"Actions pour obtenir une résilience maximale","Institution responsable","Calendrier"]

{"sheet":"E03","index":5,"n_rows":44,"n_cols":6,"rows_kept":44,"cut":false,"hidden":false,"merged":[[36,2,36,3],[37,2,37,3],[38,2,38,3],[39,2,42,3],[16,2,16,3],[17,2,20,3],[25,2,25,3],[26,2,26,3],[27,2,27,3],[28,2,31,3],[15,2,15,3],[3,2,3,3],[4,2,4,3],[5,2,5,3],[6,2,9,3],[14,2,14,3]]}
[]
[]
[null,"P3.1 - L’information sur l’encouragement de nouveaux investissements dans la ville"]
[null,"Question/Domaine d’Evaluation","Observations"]
[]
[null,"Echelle de Mesure Indicative","Moyens de vérification (explications et preuves)"]
[null,null,null,null,null,{"$f":"IF(E7=1,TRUE,FALSE)","v":false}]
[null,null,null,null,null,{"$f":"IF(E7=2,TRUE,FALSE)","v":false}]
[null,null,null,null,null,{"$f":"IF(E7=3,TRUE,FALSE)","v":false}]
[null,null,null,null,null,{"$f":"IF(E7=4,TRUE,FALSE)","v":false}]
[null,"Actions pour obtenir une résilience maximale","Responsible institution","Calendrier"]
[]
[]
[null,"P3.2 - Plan financier et budget pour la résilience, comprenant des fonds de réserve"]
[null,"Question/Domaine d’Evaluation","Observations"]
[]
[null,"Echelle de Mesure Indicative","Moyens de vérification (explications et preuves)"]
[null,null,null,null,null,{"$f":"IF(E18=1,TRUE,FALSE)","v":false}]
[null,null,null,null,null,{"$f":"IF(E18=2,TRUE,FALSE)","v":false}]
[null,null,null,null,null,{"$f":"IF(E18=3,TRUE,FALSE)","v":false}]
[null,null,null,null,null,{"$f":"IF(E18=4,TRUE,FALSE)","v":false}]
[null,"Actions pour obtenir une résilience maximale","Institution responsable","Calendrier"]
[]
[]
[null,"P3.3 - Assurance"]
[null,"Question/Domaine d’Evaluation","Observations"]
[]
[null,"Echelle de Mesure Indicative","Moyens de vérification (explications et preuves)"]
[null,null,null,null,null,{"$f":"IF(E29=1,TRUE,FALSE)","v":false}]
[null,null,null,null,null,{"$f":"IF(E29=2,TRUE,FALSE)","v":false}]
[null,null,null,null,null,{"$f":"IF(E29=3,TRUE,FALSE)","v":false}]
[null,null,null,null,null,{"$f":"IF(E29=4,TRUE,FALSE)","v":false}]
[null,"Actions pour obtenir une résilience maximale","Institution responsable","Calendrier"]
[]
[]
[null,"P3.4 - Les incitations"]
[null,"Question/Domaine d’Evaluation","Observations"]
[]
[null,"Echelle de Mesure Indicative","Moyens de vérification (explications et preuves)"]
[null,null,null,null,null,{"$f":"IF(E40=1,TRUE,FALSE)","v":false}]
[null,null,null,null,null,{"$f":"IF(E40=2,TRUE,FALSE)","v":false}]
[null,null,null,null,null,{"$f":"IF(E40=3,TRUE,FALSE)","v":false}]
[null,null,null,null,null,{"$f":"IF(E40=4,TRUE,FALSE)","v":false}]
[null,"Actions pour obtenir une résilience maximale","Institution responsable","Calendrier"]

{"sheet":"E04","index":6,"n_rows":44,"n_cols":8,"rows_kept":44,"cut":false,"hidden":false,"merged":[[36,2,36,3],[37,2,37,3],[38,2,38,3],[39,2,42,3],[16,2,16,3],[17,2,20,3],[25,2,25,3],[26,2,26,3],[27,2,27,3],[28,2,31,3],[15,2,15,3],[3,2,3,3],[4,2,4,3],[5,2,5,3],[6,2,9,3],[14,2,14,3]]}
[]
[]
[null,"P4.1 - Exploitation de terres et Zonage "]
[null,"Question/Domaine d’Evaluation","Observations"]
[]
[null,"Echelle de Mesure Indicative","Moyens de vérification (explications et preuves)"]
[null,null,null,null,null,{"$f":"IF(E7=1,TRUE,FALSE)","v":false}]
[null,null,null,null,null,{"$f":"IF(E7=2,TRUE,FALSE)","v":false}]
[null,null,null,null,null,{"$f":"IF(E7=3,TRUE,FALSE)","v":false}]
[null,null,null,null,null,{"$f":"IF(E7=4,TRUE,FALSE)","v":false}]
[null,"Actions pour obtenir une résilience maximale","Institution responsable","Calendrier"]
[]
[]
[null,"P4.2 - Le nouveau développement urbain"]
[null,"Question/Domaine d’Evaluation","Observations"]
[]
[null,"Echelle de Mesure Indicative","Moyens de vérification (explications et preuves)"]
[null,null,null,null,null,{"$f":"IF(E18=1,TRUE,FALSE)","v":false}]
[null,null,null,null,null,{"$f":"IF(E18=2,TRUE,FALSE)","v":false}]
[null,null,null,null,null,{"$f":"IF(E18=3,TRUE,FALSE)","v":false}]
[null,null,null,null,null,{"$f":"IF(E18=4,TRUE,FALSE)","v":false}]
[null,"Actions pour obtenir une résilience maximale","Institution responsable","Calendrier"]
[]
[]
[null,"P4.3 - Codes et standards de bâtiment "]
[null,"Question/Domaine d’Evaluation","Observations"]
[null,null,null,null,null,null,null,3]
[null,"Echelle de Mesure Indicative","Moyens de vérification (explications et preuves)"]
[null,null,null,null,null,{"$f":"IF(E29=1,TRUE,FALSE)","v":false}]
[null,null,null,null,null,{"$f":"IF(E29=2,TRUE,FALSE)","v":false}]
[null,null,null,null,null,{"$f":"IF(E29=3,TRUE,FALSE)","v":false}]
[null,null,null,null,null,{"$f":"IF(E29=4,TRUE,FALSE)","v":false}]
[null,"Actions pour obtenir une résilience maximale","Institution responsable","Calendrier"]
[]
[]
[null,"P4.4 - Application du zonage, des codes et standards de bâtiment "]
[null,"Question/Domaine d’Evaluation","Observations"]
[]
[null,"Echelle de Mesure Indicative","Moyens de vérification (explications et preuves)"]
[null,null,null,null,null,{"$f":"IF(E40=1,TRUE,FALSE)","v":false}]
[null,null,null,null,null,{"$f":"IF(E40=2,TRUE,FALSE)","v":false}]
[null,null,null,null,null,{"$f":"IF(E40=3,TRUE,FALSE)","v":false}]
[null,null,null,null,null,{"$f":"IF(E40=4,TRUE,FALSE)","v":false}]
[null,"Actions pour obtenir une résilience maximale","Institution responsable","Calendrier"]

{"sheet":"E05","index":7,"n_rows":33,"n_cols":6,"rows_kept":33,"cut":false,"hidden":false,"merged":[[28,2,31,3],[3,2,3,3],[4,2,4,3],[5,2,5,3],[6,2,9,3],[14,2,14,3],[15,2,15,3],[16,2,16,3],[17,2,20,3],[25,2,25,3],[26,2,26,3],[27,2,27,3]]}
[]
[]
[null,"P5.1 - Conscience et compréhension des services/fonctions de l’écosystème"]
[null,"Question/Domaine d’évaluation","Observations"]
[]
[null,"Echelle de Mesure Indicative","Moyens de vérification (explications et preuves)"]
[null,null,null,null,null,{"$f":"IF(E7=1,TRUE,FALSE)","v":false}]
[null,null,null,null,null,{"$f":"IF(E7=2,TRUE,FALSE)","v":false}]
[null,null,null,null,null,{"$f":"IF(E7=3,TRUE,FALSE)","v":false}]
[null,null,null,null,null,{"$f":"IF(E7=4,TRUE,FALSE)","v":false}]
[null,"Actions pour obtenir une résilience maximale","Institution responsable","Calendrier"]
[]
[]
[null,"P5.2 - Intégration de l’infrastructure verte et bleue dans la politique et les projets de la ville"]
[null,"Question/Domaine d’évaluation","Observations"]
[]
[null,"Echelle de Mesure Indicative","Moyens de vérification (explications et preuves)"]
[null,null,null,null,null,{"$f":"IF(E18=1,TRUE,FALSE)","v":false}]
[null,null,null,null,null,{"$f":"IF(E18=2,TRUE,FALSE)","v":false}]
[null,null,null,null,null,{"$f":"IF(E18=3,TRUE,FALSE)","v":false}]
[null,null,null,null,null,{"$f":"IF(E18=4,TRUE,FALSE)","v":false}]
[null,"Actions pour obtenir une résilience maximale","Institution responsable","Calendrier"]
[]
[]
[null,"P5.3 - Questions d’environnement transfrontalières"]
[null,"Question/Domaine d’évaluation","Observations"]
[]
[null,"Echelle de Mesure Indicative","Moyens de vérification (explications et preuves)"]
[null,null,null,null,null,{"$f":"IF(E29=1,TRUE,FALSE)","v":false}]
[null,null,null,null,null,{"$f":"IF(E29=2,TRUE,FALSE)","v":false}]
[null,null,null,null,null,{"$f":"IF(E29=3,TRUE,FALSE)","v":false}]
[null,null,null,null,null,{"$f":"IF(E29=4,TRUE,FALSE)","v":false}]
[null,"Actions pour obtenir une résilience maximale","Institution responsable","Calendrier"]

{"sheet":"E06","index":8,"n_rows":66,"n_cols":6,"rows_kept":66,"cut":false,"hidden":false,"merged":[[61,2,64,3],[36,2,36,3],[37,2,37,3],[38,2,38,3],[39,2,42,3],[47,2,47,3],[48,2,48,3],[49,2,49,3],[50,2,53,3],[58,2,58,3],[59,2,59,3],[60,2,60,3],[28,2,31,3],[3,2,3,3],[4,2,4,3],[5,2,5,3],[6,2,9,3],[14,2,14,3],[15,2,15,3],[16,2,16,3],[17,2,20,3],[25,2,25,3],[26,2,26,3],[27,2,27,3]]}
[]
[]
[null,"P6.1 - Compétences et expériences"]
[null,"Question/Domaine d’évaluation","Observations"]
[]
[null,"Echelle de mesure indicative","Moyens de vérification (explications et preuves)"]
[null,null,null,null,null,{"$f":"IF(E7=1,TRUE,FALSE)","v":false}]
[null,null,null,null,null,{"$f":"IF(E7=2,TRUE,FALSE)","v":false}]
[null,null,null,null,null,{"$f":"IF(E7=3,TRUE,FALSE)","v":false}]
[null,null,null,null,null,{"$f":"IF(E7=4,TRUE,FALSE)","v":false}]
[null,"Actions pour obtenir une résilience maximale","Institution responsable","Calendrier"]
[]
[]
[null,"P6.2 - L’éducation publique et la sensibilisation"]
[null,"Question/Domaine d’évaluation","Observations"]
[]
[null,"Echelle de mesure indicative","Moyens de vérification (explications et preuves)"]
[null,null,null,null,null,{"$f":"IF(E18=1,TRUE,FALSE)","v":false}]
[null,null,null,null,null,{"$f":"IF(E18=2,TRUE,FALSE)","v":false}]
[null,null,null,null,null,{"$f":"IF(E18=3,TRUE,FALSE)","v":false}]
[null,null,null,null,null,{"$f":"IF(E18=4,TRUE,FALSE)","v":false}]
[null,"Actions pour obtenir une résilience maximale","Institution responsable","Calendrier"]
[]
[]
[null,"P6.3 - Le partage d’information"]
[null,"Question/Domaine d’évaluation","Observations"]
[]
[null,"Echelle de mesure indicative","Moyens de vérification (explications et preuves)"]
[null,null,null,null,null,{"$f":"IF(E29=1,TRUE,FALSE)","v":false}]
[null,null,null,null,null,{"$f":"IF(E29=2,TRUE,FALSE)","v":false}]
[null,null,null,null,null,{"$f":"IF(E29=3,TRUE,FALSE)","v":false}]
[null,null,null,null,null,{"$f":"IF(E29=4,TRUE,FALSE)","v":false}]
[null,"Actions pour obtenir une résilience maximale","Institution responsable","Calendrier"]
[]
[]
[null,"P6.4 - Prestation des formations"]
[null,"Question/Domaine d’évaluation","Observations"]
[]
[null,"Echelle de mesure indicative","Moyens de vérification (explications et preuves)"]
[null,null,null,null,null,{"$f":"IF(E40=1,TRUE,FALSE)","v":false}]
[null,null,null,null,null,{"$f":"IF(E40=2,TRUE,FALSE)","v":false}]
[null,null,null,null,null,{"$f":"IF(E40=3,TRUE,FALSE)","v":false}]
[null,null,null,null,null,{"$f":"IF(E40=4,TRUE,FALSE)","v":false}]
[null,"Actions pour obtenir une résilience maximale","Institution responsable","Calendrier"]
[]
[]
[null,"P6.5 - La langue "]
[null,"Question/Domaine d’évaluation","Observations"]
[]
[null,"Echelle de mesure indicative","Moyens de vérification (explications et preuves)"]
[null,null,null,null,null,{"$f":"IF(E51=1,TRUE,FALSE)","v":false}]
[null,null,null,null,null,{"$f":"IF(E51=2,TRUE,FALSE)","v":false}]
[null,null,null,null,null,{"$f":"IF(E51=3,TRUE,FALSE)","v":false}]
[null,null,null,null,null,{"$f":"IF(E51=4,TRUE,FALSE)","v":false}]
[null,"Actions pour obtenir une résilience maximale","Institution responsable","Calendrier"]
[]
[]
[null,"P6.6 - L’apprentissage par les autres"]
[null,"Question/Domaine d’évaluation","Observations"]
[]
[null,"Echelle de mesure indicative","Moyens de vérification (explications et preuves)"]
[null,null,null,null,null,{"$f":"IF(E62=1,TRUE,FALSE)","v":false}]
[null,null,null,null,null,{"$f":"IF(E62=2,TRUE,FALSE)","v":false}]
[null,null,null,null,null,{"$f":"IF(E62=3,TRUE,FALSE)","v":false}]
[null,null,null,null,null,{"$f":"IF(E62=4,TRUE,FALSE)","v":false}]
[null,"Actions pour obtenir une résilience maximale","Institution responsable","Calendrier"]

{"sheet":"E07","index":9,"n_rows":44,"n_cols":6,"rows_kept":44,"cut":false,"hidden":false,"merged":[[36,2,36,3],[37,2,37,3],[38,2,38,3],[39,2,42,3],[16,2,16,3],[17,2,20,3],[25,2,25,3],[26,2,26,3],[27,2,27,3],[28,2,31,3],[15,2,15,3],[3,2,3,3],[4,2,4,3],[5,2,5,3],[6,2,9,3],[14,2,14,3]]}
[]
[]
[null,"P7.1 - Organisations communautaires, réseaux et formation"]
[null,"Question/Domaine d’évaluation","Observations"]
[]
[null,"Echelle de mesure indicative","Moyens de vérification (explications et preuves)"]
[null,null,null,null,null,{"$f":"IF(E7=1,TRUE,FALSE)","v":false}]
[null,null,null,null,null,{"$f":"IF(E7=2,TRUE,FALSE)","v":false}]
[null,null,null,null,null,{"$f":"IF(E7=3,TRUE,FALSE)","v":false}]
[null,null,null,null,null,{"$f":"IF(E7=4,TRUE,FALSE)","v":false}]
[null,"Actions pour obtenir une résilience maximale","Institution responsable","Calendrier"]
[]
[]
[null,"P7.2 - Réseaux sociaux « Personne n’est abandonnée à la traîne »"]
[null,"Question/Domaine d’évaluation","Observations"]
[]
[null,"Echelle de mesure indicative","Moyens de vérification (explications et preuves)"]
[null,null,null,null,null,{"$f":"IF(E18=1,TRUE,FALSE)","v":false}]
[null,null,null,null,null,{"$f":"IF(E18=2,TRUE,FALSE)","v":false}]
[null,null,null,null,null,{"$f":"IF(E18=3,TRUE,FALSE)","v":false}]
[null,null,null,null,null,{"$f":"IF(E18=4,TRUE,FALSE)","v":false}]
[null,"Actions pour obtenir une résilience maximale","Institution responsable","Calendrier"]
[]
[]
[null,"P7.3 - Secteur privé/Patron"]
[null,"Question/Domaine d’évaluation","Observations"]
[]
[null,"Echelle de mesure indicative","Moyens de vérification (explications et preuves)"]
[null,null,null,null,null,{"$f":"IF(E29=1,TRUE,FALSE)","v":false}]
[null,null,null,null,null,{"$f":"IF(E29=2,TRUE,FALSE)","v":false}]
[null,null,null,null,null,{"$f":"IF(E29=3,TRUE,FALSE)","v":false}]
[null,null,null,null,null,{"$f":"IF(E29=4,TRUE,FALSE)","v":false}]
[null,"Actions pour obtenir une résilience maximale","Institution responsable","Calendrier"]
[]
[]
[null,"P7.4 - Techniques d’engagement de citoyens"]
[null,"Question/Domaine d’évaluation","Observations"]
[]
[null,"Echelle de mesure indicative","Moyens de vérification (explications et preuves)"]
[null,null,null,null,null,{"$f":"IF(E40=1,TRUE,FALSE)","v":false}]
[null,null,null,null,null,{"$f":"IF(E40=2,TRUE,FALSE)","v":false}]
[null,null,null,null,null,{"$f":"IF(E40=3,TRUE,FALSE)","v":false}]
[null,null,null,null,null,{"$f":"IF(E40=4,TRUE,FALSE)","v":false}]
[null,"Actions pour obtenir une résilience maximale","Institution responsable","Calendrier"]

{"sheet":"E08","index":10,"n_rows":99,"n_cols":6,"rows_kept":99,"cut":false,"hidden":false,"merged":[[94,2,97,3],[80,2,80,3],[81,2,81,3],[82,2,82,3],[83,2,86,3],[91,2,91,3],[92,2,92,3],[93,2,93,3],[27,2,27,3],[61,2,64,3],[36,2,36,3],[37,2,37,3],[38,2,38,3],[39,2,42,3],[47,2,47,3],[48,2,48,3],[49,2,49,3],[50,2,53,3],[58,2,58,3],[59,2,59,3],[60,2,60,3],[15,2,15,3],[16,2,16,3],[17,2,20,3],[25,2,25,3],[26,2,26,3],[3,2,3,3],[4,2,4,3],[5,2,5,3],[6,2,9,3],[14,2,14,3],[69,2,69,3],[70,2,70,3],[71,2,71,3],[72,2,75,3],[28,2,31,3]]}
[]
[]
[null,"P8.1 - Revue d’infrastructure critique"]
[null,"Question/Domaine d’évaluation","Observations"]
[]
[null,"Echelle de mesure indicative","Moyens de vérification (explications et preuves)"]
[null,null,null,null,null,{"$f":"IF(E7=1,TRUE,FALSE)","v":false}]
[null,null,null,null,null,{"$f":"IF(E7=2,TRUE,FALSE)","v":false}]
[null,null,null,null,null,{"$f":"IF(E7=3,TRUE,FALSE)","v":false}]
[null,null,null,null,null,{"$f":"IF(E7=4,TRUE,FALSE)","v":false}]
[null,"Actions pour obtenir une résilience maximale","Institution responsable","Calendrier"]
[]
[]
[null,"P8.2 - Infrastructure protective"]
[null,"Question/Domaine d’évaluation","Observations"]
[]
[null,"Echelle de mesure indicative","Moyens de vérification (explications et preuves)"]
[null,null,null,null,null,{"$f":"IF(E18=1,TRUE,FALSE)","v":false}]
[null,null,null,null,null,{"$f":"IF(E18=2,TRUE,FALSE)","v":false}]
[null,null,null,null,null,{"$f":"IF(E18=3,TRUE,FALSE)","v":false}]
[null,null,null,null,null,{"$f":"IF(E18=4,TRUE,FALSE)","v":false}]
[null,"Actions pour obtenir une résilience maximale","Institution responsable","Calendrier"]
[]
[]
[null,"P8.3 - Eau potable et assainissement"]
[null,"Question/Domaine d’évaluation","Observations"]
[]
[null,"Echelle de mesure indicative","Moyens de vérification (explications et preuves)"]
[null,null,null,null,null,{"$f":"IF(E29=1,TRUE,FALSE)","v":false}]
[null,null,null,null,null,{"$f":"IF(E29=2,TRUE,FALSE)","v":false}]
[null,null,null,null,null,{"$f":"IF(E29=3,TRUE,FALSE)","v":false}]
[null,null,null,null,null,{"$f":"IF(E29=4,TRUE,FALSE)","v":false}]
[null,"Actions pour obtenir une résilience maximale","Institution responsable","Calendrier"]
[]
[]
[null,"P8.4 - Energie"]
[null,"Question/Domaine d’évaluation","Observations"]
[]
[null,"Echelle de mesure indicative","Moyens de vérification (explications et preuves)"]
[null,null,null,null,null,{"$f":"IF(E40=1,TRUE,FALSE)","v":false}]
[null,null,null,null,null,{"$f":"IF(E40=2,TRUE,FALSE)","v":false}]
[null,null,null,null,null,{"$f":"IF(E40=3,TRUE,FALSE)","v":false}]
[null,null,null,null,null,{"$f":"IF(E40=4,TRUE,FALSE)","v":false}]
[null,"Actions pour obtenir une résilience maximale","Institution responsable","Calendrier"]
[]
[]
[null,"P8.5 - Transport"]
[null,"Question/Domaine d’évaluation","Observations"]
[]
[null,"Echelle de mesure indicative","Moyens de vérification (explications et preuves)"]
[null,null,null,null,null,{"$f":"IF(E51=1,TRUE,FALSE)","v":false}]
[null,null,null,null,null,{"$f":"IF(E51=2,TRUE,FALSE)","v":false}]
[null,null,null,null,null,{"$f":"IF(E51=3,TRUE,FALSE)","v":false}]
[null,null,null,null,null,{"$f":"IF(E51=4,TRUE,FALSE)","v":false}]
[null,"Actions pour obtenir une résilience maximale","Institution responsable","Calendrier"]
[]
[]
[null,"P8.6 - Communications"]
[null,"Question/Domaine d’évaluation","Observations"]
[]
[null,"Echelle de mesure indicative","Moyens de vérification (explications et preuves)"]
[null,null,null,null,null,{"$f":"IF(E62=1,TRUE,FALSE)","v":false}]
[null,null,null,null,null,{"$f":"IF(E62=2,TRUE,FALSE)","v":false}]
[null,null,null,null,null,{"$f":"IF(E62=3,TRUE,FALSE)","v":false}]
[null,null,null,null,null,{"$f":"IF(E62=4,TRUE,FALSE)","v":false}]
[null,"Actions pour obtenir une résilience maximale","Institution responsable","Calendrier"]
[]
[]
[null,"P8.7 - Soins de santé"]
[null,"Question/Domaine d’évaluation","Observations"]
[]
[null,"Echelle de mesure indicative","Moyens de vérification (explications et preuves)"]
[null,null,null,null,null,{"$f":"IF(E73=1,TRUE,FALSE)","v":false}]
[null,null,null,null,null,{"$f":"IF(E73=2,TRUE,FALSE)","v":false}]
[null,null,null,null,null,{"$f":"IF(E73=3,TRUE,FALSE)","v":false}]
[null,null,null,null,null,{"$f":"IF(E73=4,TRUE,FALSE)","v":false}]
[null,"Actions pour obtenir une résilience maximale","Institution responsable","Calendrier"]
[]
[]
[null,"P8.8 - Etablissements d’éducation"]
[null,"Question/Domaine d’évaluation","Observations"]
[]
[null,"Echelle de mesure indicative","Moyens de vérification (explications et preuves)"]
[null,null,null,null,null,{"$f":"IF(E84=1,TRUE,FALSE)","v":false}]
[null,null,null,null,null,{"$f":"IF(E84=2,TRUE,FALSE)","v":false}]
[null,null,null,null,null,{"$f":"IF(E84=3,TRUE,FALSE)","v":false}]
[null,null,null,null,null,{"$f":"IF(E84=4,TRUE,FALSE)","v":false}]
[null,"Actions pour obtenir une résilience maximale","Institution responsable","Calendrier"]
[]
[]
[null,"P8.9 - Actifs des premiers intervenants"]
[null,"Question/Domaine d’évaluation","Observations"]
[]
[null,"Echelle de mesure indicative","Moyens de vérification (explications et preuves)"]
[null,null,null,null,null,{"$f":"IF(E95=1,TRUE,FALSE)","v":false}]
[null,null,null,null,null,{"$f":"IF(E95=2,TRUE,FALSE)","v":false}]
[null,null,null,null,null,{"$f":"IF(E95=3,TRUE,FALSE)","v":false}]
[null,null,null,null,null,{"$f":"IF(E95=4,TRUE,FALSE)","v":false}]
[null,"Actions pour obtenir une résilience maximale","Institution responsable","Calendrier"]

{"sheet":"E09","index":11,"n_rows":77,"n_cols":6,"rows_kept":77,"cut":false,"hidden":false,"merged":[[3,2,3,3],[4,2,4,3],[5,2,5,3],[6,2,9,3],[14,2,14,3],[15,2,15,3],[16,2,16,3],[17,2,20,3],[25,2,25,3],[26,2,26,3],[27,2,27,3],[28,2,31,3],[36,2,36,3],[37,2,37,3],[38,2,38,3],[39,2,42,3],[47,2,47,3],[48,2,48,3],[49,2,49,3],[50,2,53,3],[70,2,70,3],[71,2,71,3],[72,2,75,3],[58,2,58,3],[59,2,59,3],[60,2,60,3],[61,2,64,3],[69,2,69,3]]}
[]
[]
[null,"P9.1 - Alerte précoce"]
[null,"Question/Domaine d’évaluation","Observations"]
[]
[null,"Echelle de mesure indicative","Moyens de vérification (explications et preuves)"]
[null,null,null,null,null,{"$f":"IF(E7=1,TRUE,FALSE)","v":false}]
[null,null,null,null,null,{"$f":"IF(E7=2,TRUE,FALSE)","v":false}]
[null,null,null,null,null,{"$f":"IF(E7=3,TRUE,FALSE)","v":false}]
[null,null,null,null,null,{"$f":"IF(E7=4,TRUE,FALSE)","v":false}]
[null,"Actions pour obtenir une résilience maximale","Institution responsable","Calendrier"]
[]
[]
[null,"P9.2 - Plans de gestion d’évènement"]
[null,"Question/Domaine d’évaluation","Observations"]
[]
[null,"Echelle de mesure indicative","Moyens de vérification (explications et preuves)"]
[null,null,null,null,null,{"$f":"IF(E18=1,TRUE,FALSE)","v":false}]
[null,null,null,null,null,{"$f":"IF(E18=2,TRUE,FALSE)","v":false}]
[null,null,null,null,null,{"$f":"IF(E18=3,TRUE,FALSE)","v":false}]
[null,null,null,null,null,{"$f":"IF(E18=4,TRUE,FALSE)","v":false}]
[null,"Actions pour obtenir une résilience maximale","Institution responsable","Calendrier"]
[]
[]
[null,"P9.3 - Besoins de personnel/réagissant"]
[null,"Question/Domaine d’évaluation","Observations"]
[]
[null,"Echelle de mesure indicative","Moyens de vérification (explications et preuves)"]
[null,null,null,null,null,{"$f":"IF(E29=1,TRUE,FALSE)","v":false}]
[null,null,null,null,null,{"$f":"IF(E29=2,TRUE,FALSE)","v":false}]
[null,null,null,null,null,{"$f":"IF(E29=3,TRUE,FALSE)","v":false}]
[null,null,null,null,null,{"$f":"IF(E29=4,TRUE,FALSE)","v":false}]
[null,"Actions pour obtenir une résilience maximale","Institution responsable","Calendrier"]
[]
[]
[null,"P9.4 - Besoin en matière d’équipements et d’approvisionnement des secours"]
[null,"Question/Domaine d’évaluation","Observations"]
[]
[null,"Echelle de mesure indicative","Moyens de vérification (explications et preuves)"]
[null,null,null,null,null,{"$f":"IF(E40=1,TRUE,FALSE)","v":false}]
[null,null,null,null,null,{"$f":"IF(E40=2,TRUE,FALSE)","v":false}]
[null,null,null,null,null,{"$f":"IF(E40=3,TRUE,FALSE)","v":false}]
[null,null,null,null,null,{"$f":"IF(E40=4,TRUE,FALSE)","v":false}]
[null,"Actions pour obtenir une résilience maximale","Institution responsable","Calendrier"]
[]
[]
[null,"P9.5 - Approvisionnement en nourriture, abri, produits de base, et carburant"]
[null,"Question/Domaine d’évaluation","Observations"]
[]
[null,"Echelle de mesure indicative","Moyens de vérification (explications et preuves)"]
[null,null,null,null,null,{"$f":"IF(E51=1,TRUE,FALSE)","v":false}]
[null,null,null,null,null,{"$f":"IF(E51=2,TRUE,FALSE)","v":false}]
[null,null,null,null,null,{"$f":"IF(E51=3,TRUE,FALSE)","v":false}]
[null,null,null,null,null,{"$f":"IF(E51=4,TRUE,FALSE)","v":false}]
[null,"Actions pour obtenir une résilience maximale","Institution responsable","Calendrier"]
[]
[]
[null,"P9.6 - Interopérabilité et travail  inter-agences"]
[null,"Question/Domaine d’évaluation","Observations"]
[]
[null,"Echelle de mesure indicative","Moyens de vérification (explications et preuves)"]
[null,null,null,null,null,{"$f":"IF(E62=1,TRUE,FALSE)","v":false}]
[null,null,null,null,null,{"$f":"IF(E62=2,TRUE,FALSE)","v":false}]
[null,null,null,null,null,{"$f":"IF(E62=3,TRUE,FALSE)","v":false}]
[null,null,null,null,null,{"$f":"IF(E62=4,TRUE,FALSE)","v":false}]
[null,"Actions pour obtenir une résilience maximale","Institution responsable","Calendrier"]
[]
[]
[null,"P9.7 - Manœuvres"]
[null,"Question/Domaine d’évaluation","Observations"]
[]
[null,"Echelle de mesure indicative","Moyens de vérification (explications et preuves)"]
[null,null,null,null,null,{"$f":"IF(E73=1,TRUE,FALSE)","v":false}]
[null,null,null,null,null,{"$f":"IF(E73=2,TRUE,FALSE)","v":false}]
[null,null,null,null,null,{"$f":"IF(E73=3,TRUE,FALSE)","v":false}]
[null,null,null,null,null,{"$f":"IF(E73=4,TRUE,FALSE)","v":false}]
[null,"Actions pour obtenir une résilience maximale","Institution responsable","Calendrier"]

{"sheet":"E10","index":12,"n_rows":22,"n_cols":6,"rows_kept":22,"cut":false,"hidden":false,"merged":[[15,2,15,3],[16,2,16,3],[17,2,20,3],[3,2,3,3],[4,2,4,3],[5,2,5,3],[6,2,9,3],[14,2,14,3]]}
[]
[]
[null,"P10.1 - Plan de redressement post-évènement – pré évènement"]
[null,"Question/domaine d’évaluation","Observations"]
[]
[null,"Echelle de mesure indicative","Moyens de vérification (explications et preuves)"]
[null,null,null,null,null,{"$f":"IF(E7=1,TRUE,FALSE)","v":false}]
[null,null,null,null,null,{"$f":"IF(E7=2,TRUE,FALSE)","v":false}]
[null,null,null,null,null,{"$f":"IF(E7=3,TRUE,FALSE)","v":false}]
[null,null,null,null,null,{"$f":"IF(E7=4,TRUE,FALSE)","v":false}]
[null,"Actions pour obtenir une résilience maximale","Institution responsable","Calendrier"]
[]
[]
[null,"P10.2 - Les enseignements / cycle d’apprentissage "]
[null,"Question/domaine d’évaluation","Observations"]
[]
[null,"Echelle de mesure indicative","Moyens de vérification (explications et preuves)"]
[null,null,null,null,null,{"$f":"IF(E18=1,TRUE,FALSE)","v":false}]
[null,null,null,null,null,{"$f":"IF(E18=2,TRUE,FALSE)","v":false}]
[null,null,null,null,null,{"$f":"IF(E18=3,TRUE,FALSE)","v":false}]
[null,null,null,null,null,{"$f":"IF(E18=4,TRUE,FALSE)","v":false}]
[null,"Actions pour obtenir une résilience maximale","Institution responsable","Calendrier"]

{"sheet":"About","index":13,"n_rows":0,"n_cols":0,"rows_kept":0,"cut":false,"hidden":false,"merged":[]}